Workbook

Sheet Fixed Window
B1: Newton's Method
B3: This graphing utility lets you investigate
B4: and apply Newton's Method
C5: with any desired function
D6: y = f(x)
B7: and any starting value x0
B8: using a fixed graphing window.
A10: Enter the function in terms of x: f(x) = | F10: x^4-5*x^3+7*x+5
A13: Now enter the fixed interval for x:
C14: xMin = | D14: 0
C15: xMax = | D15: 4
I17: The graph of the function y = | M17: =F10 -> x^4-5*x^3+7*x+5
A18: Click each item below for suggestions and investigations
B19: Item 1 | L19: What is the starting point x0 = | P19: =xMin+dx*N21 -> 1.6800
B20: Item 2
B21: Item 3 | N21: 420 | O21: -0.3925
B22: Item 4
K23: How many iterations (1-15)? | O23: =O24 -> 4
J24: x0 = | K24: =xx0 -> 1.6800 | L24: y0 = | M24: =Sheet2!I1008 -> 1.0831 | N24: 0 | O24: 4
J25: x1 = | K25: =Sheet2!L1010 -> 1.46159 | L25: y1 = | M25: =Sheet2!M1010 -> 4.2030 | N25: 1 | P25: =Sheet2!R1010 -> 
A26: To access/download all the DIGMath Apps for Calculus | J26: =IF(Sheet2!$E1042<=nn,"x2 =","") -> x2 = | K26: =Sheet2!L1012 -> -0.00033 | L26: =IF(Sheet2!$E1042<=nn,"y2 =","") -> y2 = | M26: =Sheet2!M1012 ->  | N26: =IF(Sheet2!E1042<=nn,Sheet2!E1042,"") -> 2 | P26: =Sheet2!R1012 -> 
A27: Click this link: | C27: DIGMath for Calculus | J27: =IF(Sheet2!$E1043<=nn,"x3 =","") -> x3 = | K27: =Sheet2!L1014 ->  | L27: =IF(Sheet2!$E1043<=nn,"y3 =","") -> y3 = | M27: =Sheet2!M1014 ->  | N27: =IF(Sheet2!E1043<=nn,Sheet2!E1043,"") -> 3 | P27: =Sheet2!R1014 -> Outside the interval
J28: =IF(Sheet2!$E1044<=nn,"x4 =","") -> x4 = | K28: =Sheet2!L1016 ->  | L28: =IF(Sheet2!$E1044<=nn,"y4 =","") -> y4 = | M28: =Sheet2!M1016 ->  | N28: =IF(Sheet2!E1044<=nn,Sheet2!E1044,"") -> 4 | P28: =Sheet2!R1016 -> Outside the interval
A29: Created by: Sheldon P. Gordon | J29: =IF(Sheet2!$E1045<=nn,"x5 =","") ->  | K29: =Sheet2!L1018 ->  | L29: =IF(Sheet2!$E1045<=nn,"y5 =","") ->  | M29: =Sheet2!M1018 ->  | N29: =IF(Sheet2!E1045<=nn,Sheet2!E1045,"") ->  | P29: =Sheet2!R1018 -> 
A30: Farmingdale State College | J30: =IF(Sheet2!$E1046<=nn,"x6 =","") ->  | K30: =Sheet2!L1020 ->  | L30: =IF(Sheet2!$E1046<=nn,"y6 =","") ->  | M30: =Sheet2!M1020 ->  | N30: =IF(Sheet2!E1046<=nn,Sheet2!E1046,"") ->  | P30: =Sheet2!R1020 -> 
A31: Development of this module was supported by the | J31: =IF(Sheet2!$E1047<=nn,"x7 =","") ->  | K31: =Sheet2!L1022 ->  | L31: =IF(Sheet2!$E1047<=nn,"y7 =","") ->  | M31: =Sheet2!M1022 ->  | N31: =IF(Sheet2!E1047<=nn,Sheet2!E1047,"") ->  | P31: =Sheet2!R1022 -> 
A32: NSF's Division of Undergraduate Education | J32: =IF(Sheet2!$E1048<=nn,"x8 =","") ->  | K32: =Sheet2!L1024 ->  | L32: =IF(Sheet2!$E1048<=nn,"y8 =","") ->  | M32: =Sheet2!M1024 ->  | N32: =IF(Sheet2!E1048<=nn,Sheet2!E1048,"") ->  | P32: =Sheet2!R1024 -> 
A33: under grants DUE-0310123 and DUE-0442160. | J33: =IF(Sheet2!$E1049<=nn,"x9 =","") ->  | K33: =Sheet2!L1026 ->  | L33: =IF(Sheet2!$E1049<=nn,"y9 =","") ->  | M33: =Sheet2!M1026 ->  | N33: =IF(Sheet2!E1049<=nn,Sheet2!E1049,"") ->  | P33: =Sheet2!R1026 -> 
J34: =IF(Sheet2!$E1050<=nn,"x10 =","") ->  | K34: =Sheet2!L1028 ->  | L34: =IF(Sheet2!$E1050<=nn,"y10 =","") ->  | M34: =Sheet2!M1028 ->  | N34: =IF(Sheet2!E1050<=nn,Sheet2!E1050,"") ->  | P34: =Sheet2!R1028 -> 
J35: =IF(Sheet2!$E1051<=nn,"x11 =","") ->  | K35: =Sheet2!L1030 ->  | L35: =IF(Sheet2!$E1051<=nn,"y11 =","") ->  | M35: =Sheet2!M1030 ->  | N35: =IF(Sheet2!E1051<=nn,Sheet2!E1051,"") ->  | P35: =Sheet2!R1030 -> 
J36: =IF(Sheet2!$E1052<=nn,"x12 =","") ->  | K36: =Sheet2!L1032 ->  | L36: =IF(Sheet2!$E1052<=nn,"y12 =","") ->  | M36: =Sheet2!M1032 ->  | N36: =IF(Sheet2!E1052<=nn,Sheet2!E1052,"") ->  | P36: =Sheet2!R1032 -> 
J37: =IF(Sheet2!$E1053<=nn,"x13 =","") ->  | K37: =Sheet2!L1034 ->  | L37: =IF(Sheet2!$E1053<=nn,"y13 =","") ->  | M37: =Sheet2!M1034 ->  | N37: =IF(Sheet2!E1053<=nn,Sheet2!E1053,"") ->  | P37: =Sheet2!R1034 -> 
J38: =IF(Sheet2!$E1054<=nn,"x14 =","") ->  | K38: =Sheet2!L1036 ->  | L38: =IF(Sheet2!$E1054<=nn,"y14 =","") ->  | M38: =Sheet2!M1036 ->  | N38: =IF(Sheet2!E1054<=nn,Sheet2!E1054,"") ->  | P38: =Sheet2!R1036 -> 
J39: =IF(Sheet2!$E1055<=nn,"x15 =","") ->  | K39: =Sheet2!L1038 ->  | L39: =IF(Sheet2!$E1055<=nn,"y15 =","") ->  | M39: =Sheet2!M1038 ->  | N39: =IF(Sheet2!E1055<=nn,Sheet2!E1055,"") ->  | P39: =Sheet2!R1038 -> 

Sheet Variable Window
B1: Newton's Method
B3: This graphing utility lets you investigate
B4: and apply Newton's Method
C5: with any desired function
D6: y = f(x)
B7: and any starting value x0
B8: using a variable graphing window.
A10: The function from the previous page is f(x) = | F10: ='Fixed Window'!F10 -> x^4-5*x^3+7*x+5
A13: Now enter the prelimiunary interval for x:
C14: xMin = | D14: 0
C15: xMax = | D15: 4
J17: The graph of the function y = | M17: =F10 -> x^4-5*x^3+7*x+5
A18: Click each item below for suggestions and investigations
B19: Item 1 | L19: What is the starting point x0 = | P19: =xxMin+dxx*N21 -> 3.152
B20: Item 2
B21: Item 3 | N21: 197 | O21: -0.3925
B22: Item 4
K23: How many iterations (1-15)? | O23: =O24 -> 3
J24: x0 = | K24: =x0 -> 3.1520 | L24: y0 = | M24: =Sheet2!L1295 -> -30.8069 | N24: 0 | O24: 3
J25: x1 = | K25: =Sheet2!K1297 -> 1.31305 | L25: y1 = | M25: =Sheet2!L1297 -> 5.8448 | N25: 1
A26: To access/download all the DIGMath Apps for Calculus | J26: =IF(Sheet2!$E1042<=n,"x2 =","") -> x2 = | K26: =IF($N26<=n,Sheet2!K1299,"") -> 1.90851 | L26: =IF(Sheet2!$E1042<=n,"y2 =","") -> y2 = | M26: =IF($N26<=n,Sheet2!L1299,"") -> -3.13117 | N26: =IF(Sheet2!E1042<=n,Sheet2!E1042,"") -> 2
A27: Click this link: | C27: DIGMath for Calculus | J27: =IF(Sheet2!$E1043<=n,"x3 =","") -> x3 = | K27: =IF(N27<=n,Sheet2!K1300,"") -> 1.75066 | L27: =IF(Sheet2!$E1043<=n,"y3 =","") -> y3 = | M27: =IF($N27<=n,Sheet2!L1300,"") -> 0.00000 | N27: =IF(Sheet2!E1043<=n,Sheet2!E1043,"") -> 3
J28: =IF(Sheet2!$E1044<=n,"x4 =","") ->  | K28: =IF(N28<=n,Sheet2!K1301,"") ->  | L28: =IF(Sheet2!$E1044<=n,"y4 =","") ->  | M28: =IF($N28<=n,Sheet2!L1301,"") ->  | N28: =IF(Sheet2!E1044<=n,Sheet2!E1044,"") -> 
A29: Created by: Sheldon P. Gordon | J29: =IF(Sheet2!$E1045<=n,"x5 =","") ->  | K29: =IF(N29<=n,Sheet2!K1302,"") ->  | L29: =IF(Sheet2!$E1045<=n,"y5 =","") ->  | M29: =IF($N29<=n,Sheet2!L1302,"") ->  | N29: =IF(Sheet2!E1045<=n,Sheet2!E1045,"") -> 
A30: Farmingdale State College | J30: =IF(Sheet2!$E1046<=n,"x6 =","") ->  | K30: =IF(N30<=n,Sheet2!K1303,"") ->  | L30: =IF(Sheet2!$E1046<=n,"y6 =","") ->  | M30: =IF($N30<=n,Sheet2!L1303,"") ->  | N30: =IF(Sheet2!E1046<=n,Sheet2!E1046,"") -> 
A31: Development of this module was supported by the | J31: =IF(Sheet2!$E1047<=n,"x7 =","") ->  | K31: =IF(N31<=n,Sheet2!K1304,"") ->  | L31: =IF(Sheet2!$E1047<=n,"y7 =","") ->  | M31: =IF($N31<=n,Sheet2!L1304,"") ->  | N31: =IF(Sheet2!E1047<=n,Sheet2!E1047,"") -> 
A32: NSF's Division of Undergraduate Education | J32: =IF(Sheet2!$E1048<=n,"x8 =","") ->  | K32: =IF(N32<=n,Sheet2!K1305,"") ->  | L32: =IF(Sheet2!$E1048<=n,"y8 =","") ->  | M32: =IF($N32<=n,Sheet2!L1305,"") ->  | N32: =IF(Sheet2!E1048<=n,Sheet2!E1048,"") -> 
A33: under grants DUE-0310123 and DUE-0442160. | J33: =IF(Sheet2!$E1049<=n,"x9 =","") ->  | K33: =IF(N33<=n,Sheet2!K1306,"") ->  | L33: =IF(Sheet2!$E1049<=n,"y9 =","") ->  | M33: =IF($N33<=n,Sheet2!L1306,"") ->  | N33: =IF(Sheet2!E1049<=n,Sheet2!E1049,"") -> 
J34: =IF(Sheet2!$E1050<=n,"x10 =","") ->  | K34: =IF(N34<=n,Sheet2!K1307,"") ->  | L34: =IF(Sheet2!$E1050<=n,"y10 =","") ->  | M34: =IF($N34<=n,Sheet2!L1307,"") ->  | N34: =IF(Sheet2!E1050<=n,Sheet2!E1050,"") -> 
J35: =IF(Sheet2!$E1051<=n,"x11 =","") ->  | K35: =IF(N35<=n,Sheet2!K1308,"") ->  | L35: =IF(Sheet2!$E1051<=n,"y11 =","") ->  | M35: =IF($N35<=n,Sheet2!L1308,"") ->  | N35: =IF(Sheet2!E1051<=n,Sheet2!E1051,"") -> 
J36: =IF(Sheet2!$E1052<=n,"x12 =","") ->  | K36: =IF(N36<=n,Sheet2!K1309,"") ->  | L36: =IF(Sheet2!$E1052<=n,"y12 =","") ->  | M36: =IF($N36<=n,Sheet2!L1309,"") ->  | N36: =IF(Sheet2!E1052<=n,Sheet2!E1052,"") -> 
J37: =IF(Sheet2!$E1053<=n,"x13 =","") ->  | K37: =IF(N37<=n,Sheet2!K1310,"") ->  | L37: =IF(Sheet2!$E1053<=n,"y13 =","") ->  | M37: =IF($N37<=n,Sheet2!L1310,"") ->  | N37: =IF(Sheet2!E1053<=n,Sheet2!E1053,"") -> 
J38: =IF(Sheet2!$E1054<=n,"x14 =","") ->  | K38: =IF(N38<=n,Sheet2!K1311,"") ->  | L38: =IF(Sheet2!$E1054<=n,"y14 =","") ->  | M38: =IF($N38<=n,Sheet2!L1311,"") ->  | N38: =IF(Sheet2!E1054<=n,Sheet2!E1054,"") -> 
J39: =IF(Sheet2!$E1055<=n,"x15 =","") ->  | K39: =IF(N39<=n,Sheet2!K1312,"") ->  | L39: =IF(Sheet2!$E1055<=n,"y15 =","") ->  | M39: =IF($N39<=n,Sheet2!L1312,"") ->  | N39: =IF(Sheet2!E1055<=n,Sheet2!E1055,"") -> 
N41: =N39 -> 

Sheet Sheet2
C1: x | D1: y = f(x) | E1: slope
D2: ='Fixed Window'!#REF! -> 
C3: ='Fixed Window'!D14 -> 0 | D3: =x^4-5*x^3+7*x+5 -> 5 | E3: -183.4342996 | G3: =(D4-D3)/dx -> 6.999920064
C4: =C3+dx -> 0.004 | D4: 5.02799968 | E4: -182.3058289
C5: 0.008 | D5: 5.055997444 | E5: -181.1817471
C6: 0.012 | D6: 5.083991381 | E6: -180.0620459
C7: 0.016 | D7: 5.111979586 | E7: -178.9467172
C8: 0.02 | D8: 5.13996016 | E8: -177.8357527
C9: 0.024 | D9: 5.167931212 | E9: -176.7291443
C10: 0.028 | D10: 5.195890855 | E10: -175.6268838
C11: 0.032 | D11: 5.223837209 | E11: -174.5289629
A12: delta x = | B12: =(xMax-xMin)/1000 -> 0.004 | C12: 0.036 | D12: 5.2517684 | E12: -173.4353734
C13: 0.04 | D13: 5.27968256 | E13: -172.3461072
C14: 0.044 | D14: 5.307577828 | E14: -171.2611559
C15: 0.048 | D15: 5.335452348 | E15: -170.1805115
C16: 0.052 | D16: 5.363304272 | E16: -169.1041657
C17: 0.056 | D17: 5.391131754 | E17: -168.0321102
C18: 0.06 | D18: 5.41893296 | E18: -166.964337
C19: 0.064 | D19: 5.446706057 | E19: -165.9008377 | G19: =x -> 0.064
C20: 0.068 | D20: 5.474449221 | E20: -164.8416042
C21: 0.072 | D21: 5.502160634 | E21: -163.7866283
C22: 0.076 | D22: 5.529838482 | E22: -162.7359017
C23: 0.08 | D23: 5.55748096 | E23: -161.6894163
C24: 0.084 | D24: 5.585086267 | E24: -160.6471638
C25: 0.088 | D25: 5.61265261 | E25: -159.6091361
C26: 0.092 | D26: 5.640178199 | E26: -158.5753249
C27: 0.096 | D27: 5.667661255 | E27: -157.545722
C28: 0.1 | D28: 5.6951 | E28: -156.5203192
C29: 0.104 | D29: 5.722492666 | E29: -155.4991083
C30: 0.108 | D30: 5.749837489 | E30: -154.4820811
C31: 0.112 | D31: 5.777132712 | E31: -153.4692294
C32: 0.116 | D32: 5.804376584 | E32: -152.460545
C33: 0.12 | D33: 5.83156736 | E33: -151.4560197
C34: 0.124 | D34: 5.858703301 | E34: -150.4556452
C35: 0.128 | D35: 5.885782675 | E35: -149.4594134
C36: 0.132 | D36: 5.912803756 | E36: -148.4673161
C37: 0.136 | D37: 5.939764822 | E37: -147.479345
C38: 0.14 | D38: 5.96666416 | E38: -146.4954919
C39: 0.144 | D39: 5.993500062 | E39: -145.5157487
C40: 0.148 | D40: 6.020270825 | E40: -144.5401071
C41: 0.152 | D41: 6.046974755 | E41: -143.5685589
C42: 0.156 | D42: 6.073610161 | E42: -142.601096
C43: 0.16 | D43: 6.10017536 | E43: -141.63771
C44: 0.164 | D44: 6.126668675 | E44: -140.6783928
C45: 0.168 | D45: 6.153088434 | E45: -139.7231362
C46: 0.172 | D46: 6.179432973 | E46: -138.771932
C47: 0.176 | D47: 6.205700633 | E47: -137.824772
C48: 0.18 | D48: 6.23188976 | E48: -136.8816479
C49: 0.184 | D49: 6.257998709 | E49: -135.9425516
C50: 0.188 | D50: 6.284025838 | E50: -135.0074748
C51: 0.192 | D51: 6.309969514 | E51: -134.0764094
C52: 0.196 | D52: 6.335828109 | E52: -133.1493472
C53: 0.2 | D53: 6.3616 | E53: -132.2262798
C54: 0.204 | D54: 6.387283571 | E54: -131.3071992
C55: 0.208 | D55: 6.412877214 | E55: -130.3920971
C56: 0.212 | D56: 6.438379323 | E56: -129.4809653
C57: 0.216 | D57: 6.463788302 | E57: -128.5737956
C58: 0.22 | D58: 6.48910256 | E58: -127.6705798
C59: 0.224 | D59: 6.514320511 | E59: -126.7713096
C60: 0.228 | D60: 6.539440576 | E60: -125.875977
C61: 0.232 | D61: 6.564461183 | E61: -124.9845736
C62: 0.236 | D62: 6.589380764 | E62: -124.0970913
C63: 0.24 | D63: 6.61419776 | E63: -123.2135218
C64: 0.244 | D64: 6.638910615 | E64: -122.333857
C65: 0.248 | D65: 6.663517782 | E65: -121.4580886
C66: 0.252 | D66: 6.688017718 | E66: -120.5862085
C67: 0.256 | D67: =x^4-5*x^3+7*x+5 -> 6.712408887 | E67: -119.7182084
C68: =C67+dx -> 0.26 | D68: 6.73668976 | E68: -118.8540801
C69: 0.264 | D69: 6.760858812 | E69: -117.9938154
C70: 0.268 | D70: 6.784914527 | E70: -117.1374061
C71: 0.272 | D71: 6.808855392 | E71: -116.2848441
C72: 0.276 | D72: 6.832679903 | E72: -115.436121
C73: 0.28 | D73: 6.85638656 | E73: -114.5912287
C74: 0.284 | D74: 6.87997387 | E74: -113.7501589
C75: 0.288 | D75: 6.903440347 | E75: -112.9129036
C76: 0.292 | D76: 6.92678451 | E76: -112.0794544
C77: 0.296 | D77: 6.950004883 | E77: -111.2498031
C78: 0.3 | D78: 6.9731 | E78: -110.4239416
C79: 0.304 | D79: 6.996068397 | E79: -109.6018616
C80: 0.308 | D80: 7.018908618 | E80: -108.783555
C81: 0.312 | D81: 7.041619214 | E81: -107.9690135
C82: 0.316 | D82: 7.064198741 | E82: -107.1582289
C83: 0.32 | D83: 7.08664576 | E83: -106.351193
C84: 0.324 | D84: 7.108958841 | E84: -105.5478976
C85: 0.328 | D85: 7.131136557 | E85: -104.7483345
C86: 0.332 | D86: 7.15317749 | E86: -103.9524955
C87: 0.336 | D87: 7.175080227 | E87: -103.1603724
C88: 0.34 | D88: 7.19684336 | E88: -102.3719569
C89: 0.344 | D89: 7.218465489 | E89: -101.5872409
C90: 0.348 | D90: 7.239945219 | E90: -100.8062162
C91: 0.352 | D91: 7.261281161 | E91: -100.0288745
C92: 0.356 | D92: 7.282471934 | E92: -99.25520765
C93: 0.36 | D93: 7.30351616 | E93: -98.48520744
C94: 0.364 | D94: 7.32441247 | E94: -97.71886566
C95: 0.368 | D95: 7.3451595 | E95: -96.9561741
C96: 0.372 | D96: 7.365755891 | E96: -96.19712455
C97: 0.376 | D97: 7.386200293 | E97: -95.44170881
C98: 0.38 | D98: 7.40649136 | E98: -94.68991867
C99: 0.384 | D99: 7.426627752 | E99: -93.94174592
C100: 0.388 | D100: 7.446608136 | E100: -93.19718235
C101: 0.392 | D101: 7.466431185 | E101: -92.45621975
C102: 0.396 | D102: 7.486095578 | E102: -91.71884993
C103: 0.4 | D103: 7.5056 | E103: -90.98506467
C104: 0.404 | D104: 7.524943143 | E104: -90.25485576
C105: 0.408 | D105: 7.544123703 | E105: -89.528215
C106: 0.412 | D106: 7.563140386 | E106: -88.80513418
C107: 0.416 | D107: 7.581991899 | E107: -88.08560509
C108: 0.42 | D108: 7.60067696 | E108: -87.36961952
C109: 0.424 | D109: 7.61919429 | E109: -86.65716928
C110: 0.428 | D110: 7.637542618 | E110: -85.94824614
C111: 0.432 | D111: 7.655720677 | E111: -85.24284191
C112: 0.436 | D112: 7.673727209 | E112: -84.54094837
C113: 0.44 | D113: 7.69156096 | E113: -83.84255732
C114: 0.444 | D114: 7.709220682 | E114: -83.14766055
C115: 0.448 | D115: 7.726705136 | E115: -82.45624985
C116: 0.452 | D116: 7.744013084 | E116: -81.76831702
C117: 0.456 | D117: 7.7611433 | E117: -81.08385384
C118: 0.46 | D118: 7.77809456 | E118: -80.40285212
C119: 0.464 | D119: 7.794865648 | E119: -79.72530365
C120: 0.468 | D120: 7.811455353 | E120: -79.05120021
C121: 0.472 | D121: 7.827862471 | E121: -78.38053359
C122: 0.476 | D122: 7.844085804 | E122: -77.7132956
C123: 0.48 | D123: 7.86012416 | E123: -77.04947803
C124: 0.484 | D124: 7.875976354 | E124: -76.38907266
C125: 0.488 | D125: 7.891641205 | E125: -75.73207129
C126: 0.492 | D126: 7.90711754 | E126: -75.07846572
C127: 0.496 | D127: 7.922404192 | E127: -74.42824773
C128: 0.5 | D128: 7.9375 | E128: -73.78140911
C129: 0.504 | D129: 7.952403808 | E129: -73.13794167
C130: 0.508 | D130: 7.967114468 | E130: -72.49783719
C131: 0.512 | D131: =x^4-5*x^3+7*x+5 -> 7.981630837 | E131: -71.86108747
C132: =C131+dx -> 0.516 | D132: 7.995951778 | E132: -71.22768429
C133: 0.52 | D133: 8.01007616 | E133: -70.59761946
C134: 0.524 | D134: 8.02400286 | E134: -69.97088476
C135: 0.528 | D135: 8.037730759 | E135: -69.34747198
C136: 0.532 | D136: 8.051258745 | E136: -68.72737293
C137: 0.536 | D137: 8.064585712 | E137: -68.11057938
C138: 0.54 | D138: 8.07771056 | E138: -67.49708314
C139: 0.544 | D139: 8.090632196 | E139: -66.886876
C140: 0.548 | D140: 8.103349532 | E140: -66.27994974
C141: 0.552 | D141: 8.115861488 | E141: -65.67629617
C142: 0.556 | D142: 8.128166986 | E142: -65.07590707
C143: 0.56 | D143: 8.14026496 | E143: -64.47877425
C144: 0.564 | D144: 8.152154345 | E144: -63.88488948
C145: 0.568 | D145: 8.163834085 | E145: -63.29424456
C146: 0.572 | D146: 8.17530313 | E146: -62.70683129
C147: 0.576 | D147: 8.186560434 | E147: -62.12264145
C148: 0.58 | D148: 8.19760496 | E148: -61.54166685
C149: 0.584 | D149: 8.208435675 | E149: -60.96389927
C150: 0.588 | D150: 8.219051554 | E150: -60.38933051
C151: 0.592 | D151: 8.229451575 | E151: -59.81795235
C152: 0.596 | D152: 8.239634727 | E152: -59.2497566
C153: 0.6 | D153: 8.2496 | E153: -58.68473504
C154: 0.604 | D154: 8.259346394 | E154: -58.12287947
C155: 0.608 | D155: 8.268872913 | E155: -57.56418167
C156: 0.612 | D156: 8.278178568 | E156: -57.00863345
C157: 0.616 | D157: 8.287262376 | E157: -56.45622659
C158: 0.62 | D158: 8.29612336 | E158: -55.90695289
C159: 0.624 | D159: 8.304760549 | E159: -55.36080414
C160: 0.628 | D160: 8.313172979 | E160: -54.81777213
C161: 0.632 | D161: 8.321359692 | E161: -54.27784866
C162: 0.636 | D162: 8.329319734 | E162: -53.74102552
C163: 0.64 | D163: 8.33705216 | E163: -53.20729449
C164: 0.644 | D164: 8.34455603 | E164: -52.67664738
C165: 0.648 | D165: 8.351830409 | E165: -52.14907597
C166: 0.652 | D166: 8.358874371 | E166: -51.62457206
C167: 0.656 | D167: 8.365686993 | E167: -51.10312745
C168: 0.66 | D168: 8.37226736 | E168: -50.58473391
C169: 0.664 | D169: 8.378614563 | E169: -50.06938326
C170: 0.668 | D170: 8.384727698 | E170: -49.55706727
C171: 0.672 | D171: 8.390605869 | E171: -49.04777774
C172: 0.676 | D172: 8.396248185 | E172: -48.54150647
C173: 0.68 | D173: 8.40165376 | E173: -48.03824524
C174: 0.684 | D174: 8.406821717 | E174: -47.53798585
C175: 0.688 | D175: 8.411751182 | E175: -47.0407201
C176: 0.692 | D176: 8.41644129 | E176: -46.54643977
C177: 0.696 | D177: 8.420891181 | E177: -46.05513666
C178: 0.7 | D178: 8.4251 | E178: -45.56680256
C179: 0.704 | D179: 8.429066899 | E179: -45.08142926
C180: 0.708 | D180: 8.432791038 | E180: -44.59900855
C181: 0.712 | D181: 8.436271579 | E181: -44.11953224
C182: 0.716 | D182: 8.439507694 | E182: -43.6429921
C183: 0.72 | D183: 8.44249856 | E183: -43.16937994
C184: 0.724 | D184: 8.445243359 | E184: -42.69868754
C185: 0.728 | D185: 8.44774128 | E185: -42.2309067
C186: 0.732 | D186: 8.449991519 | E186: -41.76602922
C187: 0.736 | D187: 8.451993276 | E187: -41.30404687
C188: 0.74 | D188: 8.45374576 | E188: -40.84495147
C189: 0.744 | D189: 8.455248183 | E189: -40.38873479
C190: 0.748 | D190: 8.456499766 | E190: -39.93538864
C191: 0.752 | D191: 8.457499734 | E191: -39.4849048
C192: 0.756 | D192: 8.458247319 | E192: -39.03727506
C193: 0.76 | D193: 8.45874176 | E193: -38.59249123
C194: 0.764 | D194: 8.4589823 | E194: -38.15054509
C195: 0.768 | D195: =x^4-5*x^3+7*x+5 -> 8.458968191 | E195: -37.71142843
C196: =C195+dx -> 0.772 | D196: 8.458698688 | E196: -37.27513305
C197: 0.776 | D197: 8.458173055 | E197: -36.84165074
C198: 0.78 | D198: 8.45739056 | E198: -36.4109733
C199: 0.784 | D199: 8.456350478 | E199: -35.98309251
C200: 0.788 | D200: 8.455052091 | E200: -35.55800017
... 1125 more rows

Sheet Defining Function
A1: Defining a Function in Excel
A3: Computers have very specific rules you must follow when defining a function. If you don't, the program will either not work at all or will work incorrectly.
A5: 1. The Variable used should be the one named in the instruction, usually x, though sometimes y, t, Q (for an angle theta),
A6: or even x and y (for a function of two variables).
A8: 2. Order of Operations: There five arithmetic operations, addition (+), subtraction (-), multiplication (*), division (/), and exponentiation or power (^). When computers see any of these operation symbols, they perform the indicated steps in a very particular order. First, the power is done. Second, products and quotients of adjacent terms is done. Third, and last, sums and differences of adjacent terms are done. So, in 10*x^3 + 5*x – 7, say with x = 2, the first pass only calculates 2^3 and ignores the multiplications and the sums and differences to calculate 2^3 = 8. The second pass looks at 10*8 + 5*2 – 7 and only does the multiplications, so it produces 80 + 10 - 7. The third pass looks at the +’s and –‘s to produce 80 + 10 – 7 = 83.
A10: 3. Parentheses If you need an operation involving more than two adjacent terms, as in Ö4^3 + 6^2, the computer would take the square root of 4 to produce 2^3 + 6^2; it would then cube the 2 and square the 6 to produce 8 + 36; and finally it would add the 8 and the 36 to get 44. If you actually wanted the square root of the entire expression, you would need to use parentheses, as in Ö(4^3 + 6^2) to tell the computer to do all the operations inside the parentheses before taking the square root. Therefore, it would calculate (4^3 + 6^2) = 64 + 36 = 100 and then take the square root of Ö100 = 10.
A12: 4. Built-In Functions Computer programs have built-in functions for most common algebraic functions. In Excel, the square root function is denoted by SQRT(…), so SQRT(100) = 10. Alternatively, you could enter it as 100^.5 or 100^(1/2); notice that parentheses are needed to have the ½ done first. The common trig functions are SIN (…), COS (…), and TAN (…), where the arguments are automatically interpreted as being in radians, not degrees. The logarithm to the base 10 is represented by LOG (…) and the logarithm with the base e, known as the natural logarithm, is LN (…). The corresponding exponential function with base e is EXP (x). If x is the variable, then each of these would be SQRT (x), SIN (x), COS (x), TAN (x), LOG (x) (for log with base 10 ), LN (x) (for log with base e ), and EXP (x).

Sheet Sheet3
